[Event "*** Titled Tuesday Blitz"]
[Site "Chess.com"]
[Date "2020.12.29"]
[Round "5"]
[White "aa175"]
[Black "Mambastik-Fantastic"]
[Result "0-1"]
[WhiteElo "2361"]
[BlackElo "2226"]
[TimeControl "180+1"]
[EndTime "10:55:40 PST"]
[Termination "Mambastik-Fantastic won on time"]

1. d4 {[%clk 0:02:39.8]} 1... Nf6 {[%clk 0:02:58.9]} 2. Bf4 {[%clk 0:02:40.4]}
2... d5 {[%clk 0:02:57.7]} 3. e3 {[%clk 0:02:40.8]} 3... c5 {[%clk 0:02:57.7]}
4. Nf3 {[%clk 0:02:41.3]} 4... Nc6 {[%clk 0:02:57.7]} 5. Nbd2 {[%clk 0:02:41]}
5... Bf5 {[%clk 0:02:56]} 6. c3 {[%clk 0:02:40.7]} 6... e6 {[%clk 0:02:56.2]} 7.
Qb3 {[%clk 0:02:41.1]} 7... Qb6 {[%clk 0:02:55.5]} 8. Qxb6 {[%clk 0:02:40]} 8...
axb6 {[%clk 0:02:55.3]} 9. Bb5 {[%clk 0:02:39.3]} 9... Be7 {[%clk 0:02:44.5]}
10. Ne5 {[%clk 0:02:39.3]} 10... Rc8 {[%clk 0:02:44.1]} 11. Nxc6 {[%clk
0:02:39.7]} 11... bxc6 {[%clk 0:02:44.1]} 12. Ba6 {[%clk 0:02:40.2]} 12... Kd7
{[%clk 0:02:35.1]} 13. Bxc8+ {[%clk 0:02:39.2]} 13... Rxc8 {[%clk 0:02:34.6]}
14. Nf3 {[%clk 0:02:39.8]} 14... c4 {[%clk 0:02:29.5]} 15. Ne5+ {[%clk
0:02:40.7]} 15... Ke8 {[%clk 0:02:29.2]} 16. a4 {[%clk 0:02:41.6]} 16... Nd7
{[%clk 0:02:23.3]} 17. Nxd7 {[%clk 0:02:39.2]} 17... Kxd7 {[%clk 0:02:23.1]} 18.
O-O {[%clk 0:02:37.3]} 18... Ra8 {[%clk 0:02:21.6]} 19. a5 {[%clk 0:02:16.7]}
19... bxa5 {[%clk 0:02:15.7]} 20. Ra4 {[%clk 0:02:15.5]} 20... Bc2 {[%clk
0:02:13.6]} 21. Raa1 {[%clk 0:02:09.3]} 21... a4 {[%clk 0:02:13.4]} 22. f3
{[%clk 0:02:07.5]} 22... Ra7 {[%clk 0:02:05.9]} 23. Rf2 {[%clk 0:02:02.4]} 23...
Bd3 {[%clk 0:02:02]} 24. Bb8 {[%clk 0:01:57.6]} 24... Ra8 {[%clk 0:02:00.8]} 25.
Be5 {[%clk 0:01:54.6]} 25... g6 {[%clk 0:01:58.1]} 26. Rd2 {[%clk 0:01:52.4]}
26... f6 {[%clk 0:01:50.4]} 27. Bg3 {[%clk 0:01:51.8]} 27... h5 {[%clk
0:01:48.7]} 28. b4 {[%clk 0:01:13.9]} 28... cxb3 {[%clk 0:01:27]} 29. Rxd3
{[%clk 0:01:12.9]} 29... b2 {[%clk 0:01:26.9]} 30. Rb1 {[%clk 0:01:12.1]} 30...
a3 {[%clk 0:01:27.1]} 31. Rdd1 {[%clk 0:01:06.1]} 31... a2 {[%clk 0:01:06.7]}
32. Rxb2 {[%clk 0:01:05.6]} 32... a1=Q {[%clk 0:01:06.2]} 33. Rb7+ {[%clk
0:00:56.3]} 33... Kc8 {[%clk 0:01:02.7]} 34. Rb8+ {[%clk 0:00:38.9]} 34... Kd7
{[%clk 0:00:49.9]} 35. Rb7+ {[%clk 0:00:35.6]} 35... Kc8 {[%clk 0:00:49.6]} 36.
Rb8+ {[%clk 0:00:29.8]} 36... Rxb8 {[%clk 0:00:42.9]} 37. Rxa1 {[%clk
0:00:30.7]} 37... Rb3 {[%clk 0:00:38.7]} 38. Ra7 {[%clk 0:00:28]} 38... Bd8
{[%clk 0:00:35.4]} 39. Ra8+ {[%clk 0:00:20.3]} 39... Kd7 {[%clk 0:00:34.6]} 40.
Ra7+ {[%clk 0:00:20.6]} 40... Ke8 {[%clk 0:00:34.4]} 41. Be1 {[%clk 0:00:15.3]}
41... Rb1 {[%clk 0:00:23.8]} 42. Kf2 {[%clk 0:00:12.3]} 42... Rb2+ {[%clk
0:00:23.9]} 43. Kf1 {[%clk 0:00:06.1]} 43... Be7 {[%clk 0:00:21.4]} 44. Ra8+
{[%clk 0:00:02.8]} 44... Kf7 {[%clk 0:00:19.5]} 45. Ra6 {[%clk 0:00:02.7]} 45...
c5 {[%clk 0:00:18.4]} 46. Ra7 {[%clk 0:00:02.4]} 46... c4 {[%clk 0:00:16.9]} 47.
Ra6 {[%clk 0:00:01.6]} 47... g5 {[%clk 0:00:14.6]} 48. e4 {[%clk 0:00:01.6]}
48... h4 {[%clk 0:00:13.7]} 49. exd5 {[%clk 0:00:01.6]} 49... exd5 {[%clk
0:00:13.6]} 50. h3 {[%clk 0:00:02.1]} 50... Rc2 {[%clk 0:00:06.9]} 51. Ra5
{[%clk 0:00:02]} 51... Ke6 {[%clk 0:00:06]} 52. Ra6+ {[%clk 0:00:02.5]} 52...
Bd6 {[%clk 0:00:05.8]} 53. Ra5 {[%clk 0:00:03]} 53... Rc1 {[%clk 0:00:04.9]} 54.
Ke2 {[%clk 0:00:02.8]} 54... Rc2+ {[%clk 0:00:04.5]} 55. Kf1 {[%clk 0:00:02.5]}
55... Rb2 {[%clk 0:00:04.5]} 56. Ra6 {[%clk 0:00:02]} 56... Rb1 {[%clk
0:00:04.3]} 0-1

[Event "*** Titled Tuesday Blitz"]
[Site "Chess.com"]
[Date "2020.12.29"]
[Round "5"]
[White "Deepweb2020"]
[Black "Margarita2907"]
[Result "1-0"]
[WhiteElo "2365"]
[BlackElo "2188"]
[TimeControl "180+1"]
[EndTime "10:55:40 PST"]
[Termination "Deepweb2020 won on time"]

1. d4 {[%clk 0:02:58.8]} 1... e6 {[%clk 0:02:57.6]} 2. c4 {[%clk 0:02:54]} 2...
Nf6 {[%clk 0:02:56.4]} 3. g3 {[%clk 0:02:53.7]} 3... d5 {[%clk 0:02:53.4]} 4.
Nf3 {[%clk 0:02:46.7]} 4... Be7 {[%clk 0:02:52.1]} 5. Bg2 {[%clk 0:02:34.2]}
5... O-O {[%clk 0:02:51]} 6. O-O {[%clk 0:02:33.7]} 6... c6 {[%clk 0:02:49.7]}
7. Nbd2 {[%clk 0:02:33.6]} 7... b6 {[%clk 0:02:48.9]} 8. Qc2 {[%clk 0:02:32.3]}
8... Bb7 {[%clk 0:02:48.3]} 9. e4 {[%clk 0:02:30.5]} 9... Na6 {[%clk 0:02:44.4]}
10. a3 {[%clk 0:02:25.5]} 10... dxc4 {[%clk 0:02:37.7]} 11. Nxc4 {[%clk
0:02:13]} 11... c5 {[%clk 0:02:36.9]} 12. e5 {[%clk 0:02:08]} 12... Nd5 {[%clk
0:02:34.2]} 13. Rd1 {[%clk 0:02:06.2]} 13... Rc8 {[%clk 0:02:31.6]} 14. Qe2
{[%clk 0:02:01.3]} 14... Qc7 {[%clk 0:02:17.2]} 15. Ne3 {[%clk 0:01:42.6]} 15...
Rfd8 {[%clk 0:02:10.4]} 16. h4 {[%clk 0:01:36.6]} 16... cxd4 {[%clk 0:01:43.9]}
17. Rxd4 {[%clk 0:01:24.2]} 17... Nxe3 {[%clk 0:01:41.2]} 18. Rxd8+ {[%clk
0:01:16.8]} 18... Rxd8 {[%clk 0:01:39.6]} 19. Bxe3 {[%clk 0:01:16.9]} 19... Nc5
{[%clk 0:01:32.8]} 20. Rd1 {[%clk 0:01:03.2]} 20... Bd5 {[%clk 0:01:23.8]} 21.
b4 {[%clk 0:00:54.5]} 21... Ne4 {[%clk 0:01:18.5]} 22. Rc1 {[%clk 0:00:51.3]}
22... Qd7 {[%clk 0:01:16.2]} 23. Qc2 {[%clk 0:00:50.1]} 23... Bb7 {[%clk
0:01:05.7]} 24. Qc7 {[%clk 0:00:47.2]} 24... g6 {[%clk 0:00:58.3]} 25. h5 {[%clk
0:00:44.1]} 25... gxh5 {[%clk 0:00:40.8]} 26. Ne1 {[%clk 0:00:34.3]} 26... Bd5
{[%clk 0:00:34.2]} 27. Nd3 {[%clk 0:00:25.6]} 27... Ng5 {[%clk 0:00:29.5]} 28.
Bxd5 {[%clk 0:00:21.4]} 28... exd5 {[%clk 0:00:26.2]} 29. Nf4 {[%clk 0:00:21]}
29... Ne6 {[%clk 0:00:17.7]} 30. Qxd7 {[%clk 0:00:18.1]} 30... Rxd7 {[%clk
0:00:15.6]} 31. Nxh5 {[%clk 0:00:17.7]} 31... Rc7 {[%clk 0:00:13.8]} 32. Rd1
{[%clk 0:00:16.3]} 32... d4 {[%clk 0:00:10.6]} 33. Bh6 {[%clk 0:00:12.7]} 33...
Bf8 {[%clk 0:00:06.9]} 34. Nf6+ {[%clk 0:00:11.4]} 34... Kh8 {[%clk 0:00:06.2]}
35. Bxf8 {[%clk 0:00:11.6]} 35... Nxf8 {[%clk 0:00:07.1]} 36. Rxd4 {[%clk
0:00:12.2]} 36... Rc1+ {[%clk 0:00:06.7]} 37. Kg2 {[%clk 0:00:12.3]} 37... Kg7
{[%clk 0:00:06.8]} 38. Rd8 {[%clk 0:00:09.4]} 38... Ne6 {[%clk 0:00:05.8]} 39.
Rg8+ {[%clk 0:00:08.1]} 39... Kh6 {[%clk 0:00:06.3]} 40. g4 {[%clk 0:00:07.2]}
40... Rc4 {[%clk 0:00:04.3]} 41. Kg3 {[%clk 0:00:06.5]} 41... Ng5 {[%clk
0:00:03.9]} 42. f4 {[%clk 0:00:05.1]} 42... Ne4+ {[%clk 0:00:03.8]} 43. Nxe4
{[%clk 0:00:04.1]} 43... Rxe4 {[%clk 0:00:04.7]} 44. g5+ {[%clk 0:00:04.1]}
44... Kh5 {[%clk 0:00:04.2]} 45. Rg7 {[%clk 0:00:04.5]} 45... Re3+ {[%clk
0:00:03.4]} 46. Kf2 {[%clk 0:00:05]} 46... Rxa3 {[%clk 0:00:03.2]} 47. Rxh7+
{[%clk 0:00:05.2]} 47... Kg4 {[%clk 0:00:03.3]} 48. Rxf7 {[%clk 0:00:05.3]}
48... Ra2+ {[%clk 0:00:03.5]} 49. Ke3 {[%clk 0:00:05.5]} 1-0

[Event "*** Titled Tuesday Blitz"]
[Site "Chess.com"]
[Date "2020.12.29"]
[Round "5"]
[White "frederiksvane"]
[Black "Keks2017"]
[Result "1-0"]
[WhiteElo "2747"]
[BlackElo "2562"]
[TimeControl "180+1"]
[EndTime "10:55:42 PST"]
[Termination "frederiksvane won on time"]

1. e4 {[%clk 0:03:00.9]} 1... d6 {[%clk 0:02:58.9]} 2. d4 {[%clk 0:03:01]} 2...
Nf6 {[%clk 0:02:57.9]} 3. Bd3 {[%clk 0:03:01.1]} 3... e5 {[%clk 0:02:56.3]} 4.
c3 {[%clk 0:02:56.6]} 4... d5 {[%clk 0:02:55.8]} 5. dxe5 {[%clk 0:02:56.9]} 5...
Nxe4 {[%clk 0:02:54.5]} 6. Nf3 {[%clk 0:02:56]} 6... Nc6 {[%clk 0:02:53]} 7. O-O
{[%clk 0:02:55.9]} 7... Bg4 {[%clk 0:02:50.6]} 8. Qe2 {[%clk 0:02:40.4]} 8...
Nc5 {[%clk 0:02:47.1]} 9. Nbd2 {[%clk 0:02:27.8]} 9... Nxd3 {[%clk 0:02:43.4]}
10. Qxd3 {[%clk 0:02:28.7]} 10... Be7 {[%clk 0:02:42.4]} 11. Re1 {[%clk
0:02:24.5]} 11... O-O {[%clk 0:02:39.4]} 12. Nb3 {[%clk 0:02:24.5]} 12... Bh5
{[%clk 0:02:35.6]} 13. Bf4 {[%clk 0:02:20.8]} 13... Bg6 {[%clk 0:02:28.1]} 14.
Qb5 {[%clk 0:02:15]} 14... Rb8 {[%clk 0:02:19]} 15. Rad1 {[%clk 0:02:11.2]}
15... a6 {[%clk 0:02:13.8]} 16. Qxd5 {[%clk 0:02:01.3]} 16... Qxd5 {[%clk
0:02:11.9]} 17. Rxd5 {[%clk 0:02:02.2]} 17... Bf5 {[%clk 0:02:07.5]} 18. Nfd4
{[%clk 0:01:53.6]} 18... Nxd4 {[%clk 0:02:04.6]} 19. Nxd4 {[%clk 0:01:54.5]}
19... Bg6 {[%clk 0:01:59.5]} 20. e6 {[%clk 0:01:32.8]} 20... Rbc8 {[%clk
0:01:38.1]} 21. Rd7 {[%clk 0:01:28.3]} 21... Bf6 {[%clk 0:01:35.4]} 22. e7
{[%clk 0:01:04.1]} 22... Rfe8 {[%clk 0:01:33.6]} 23. Bxc7 {[%clk 0:01:04.2]}
23... Bxd4 {[%clk 0:01:29.6]} 24. cxd4 {[%clk 0:01:05.1]} 24... f6 {[%clk
0:01:28]} 25. d5 {[%clk 0:01:00.8]} 25... Bf5 {[%clk 0:01:21.5]} 26. Rd8 {[%clk
0:00:58.9]} 26... Kf7 {[%clk 0:01:20.4]} 27. d6 {[%clk 0:00:59]} 27... Rcxd8
{[%clk 0:00:59.7]} 28. Bxd8 {[%clk 0:00:57.7]} 28... Bd7 {[%clk 0:00:56]} 29. f4
{[%clk 0:00:53.6]} 29... g5 {[%clk 0:00:43.1]} 30. fxg5 {[%clk 0:00:51.1]} 30...
fxg5 {[%clk 0:00:42.4]} 31. Kf2 {[%clk 0:00:48]} 31... Rg8 {[%clk 0:00:40.3]}
32. Re5 {[%clk 0:00:42.2]} 32... h6 {[%clk 0:00:36.1]} 33. Ke3 {[%clk
0:00:41.8]} 33... Rg6 {[%clk 0:00:32.4]} 34. Bc7 {[%clk 0:00:38.9]} 34... Re6
{[%clk 0:00:26.1]} 35. Kd4 {[%clk 0:00:38.2]} 35... Kf6 {[%clk 0:00:23.6]} 36.
Rxe6+ {[%clk 0:00:33.4]} 36... Kxe6 {[%clk 0:00:23.1]} 37. g4 {[%clk 0:00:29.1]}
37... Kf7 {[%clk 0:00:21.7]} 38. h3 {[%clk 0:00:28]} 38... Kf6 {[%clk
0:00:19.1]} 39. Ba5 {[%clk 0:00:14.4]} 39... Ke6 {[%clk 0:00:17.7]} 40. Bb4
{[%clk 0:00:14.8]} 40... Kf6 {[%clk 0:00:16.8]} 41. Be1 {[%clk 0:00:13.8]} 41...
Ke6 {[%clk 0:00:15.7]} 42. Bg3 {[%clk 0:00:14.3]} 42... Kf6 {[%clk 0:00:15.1]}
43. Be5+ {[%clk 0:00:14.9]} 43... Kf7 {[%clk 0:00:13.9]} 44. a3 {[%clk
0:00:15.2]} 44... Kg6 {[%clk 0:00:11.7]} 45. Kc5 {[%clk 0:00:15.1]} 45... h5
{[%clk 0:00:11.2]} 46. Kb6 {[%clk 0:00:16]} 46... hxg4 {[%clk 0:00:09.5]} 47.
hxg4 {[%clk 0:00:16.9]} 47... Kf7 {[%clk 0:00:08.1]} 48. Kc7 {[%clk 0:00:17.5]}
48... Ke8 {[%clk 0:00:06.3]} 49. Bf6 {[%clk 0:00:16.1]} 49... Bc6 {[%clk
0:00:04.2]} 50. Bxg5 {[%clk 0:00:15.7]} 50... a5 {[%clk 0:00:03.5]} 51. Bf4
{[%clk 0:00:15.2]} 51... a4 {[%clk 0:00:03.1]} 52. g5 {[%clk 0:00:15.7]} 52...
Bd7 {[%clk 0:00:02]} 53. g6 {[%clk 0:00:15.2]} 53... b5 {[%clk 0:00:01.7]} 54.
g7 {[%clk 0:00:14.8]} 54... Be6 {[%clk 0:00:01.5]} 55. d7+ {[%clk 0:00:15.2]}
1-0

[Event "*** Titled Tuesday Blitz"]
[Site "Chess.com"]
[Date "2020.12.29"]
[Round "5"]
[White "lelajavakhishvili"]
[Black "Jenia84"]
[Result "0-1"]
[WhiteElo "2504"]
[BlackElo "2345"]
[TimeControl "180+1"]
[EndTime "10:55:43 PST"]
[Termination "Jenia84 won by resignation"]

1. Nf3 {[%clk 0:03:00.9]} 1... Nf6 {[%clk 0:02:57.5]} 2. g3 {[%clk 0:03:00.9]}
2... b6 {[%clk 0:02:53.9]} 3. Bg2 {[%clk 0:03:00.6]} 3... Bb7 {[%clk 0:02:54.5]}
4. O-O {[%clk 0:03:01]} 4... c5 {[%clk 0:02:54.5]} 5. c4 {[%clk 0:02:54.6]} 5...
Nc6 {[%clk 0:02:54.3]} 6. Nc3 {[%clk 0:02:54.5]} 6... Rc8 {[%clk 0:02:53.3]} 7.
b3 {[%clk 0:02:35.9]} 7... g6 {[%clk 0:02:46.7]} 8. Bb2 {[%clk 0:02:35.4]} 8...
Bg7 {[%clk 0:02:46.6]} 9. Nd5 {[%clk 0:02:35.4]} 9... e6 {[%clk 0:02:26.5]} 10.
Nxf6+ {[%clk 0:02:28.4]} 10... Bxf6 {[%clk 0:02:26.6]} 11. Bxf6 {[%clk
0:01:57.6]} 11... Qxf6 {[%clk 0:02:25]} 12. d3 {[%clk 0:01:54.5]} 12... Nd4
{[%clk 0:01:57.1]} 13. Nd2 {[%clk 0:01:45.4]} 13... Bxg2 {[%clk 0:01:55.8]} 14.
Kxg2 {[%clk 0:01:46.3]} 14... O-O {[%clk 0:01:53.3]} 15. e3 {[%clk 0:01:42.8]}
15... Nc6 {[%clk 0:01:52]} 16. Qf3 {[%clk 0:01:32.9]} 16... Qxf3+ {[%clk
0:01:44.9]} 17. Nxf3 {[%clk 0:01:33.8]} 17... d5 {[%clk 0:01:44.5]} 18. cxd5
{[%clk 0:01:28.8]} 18... exd5 {[%clk 0:01:44.2]} 19. Rfd1 {[%clk 0:01:25.2]}
19... d4 {[%clk 0:01:09.5]} 20. e4 {[%clk 0:01:12.1]} 20... f5 {[%clk
0:00:55.7]} 21. Nd2 {[%clk 0:00:54.1]} 21... Ne5 {[%clk 0:00:47.7]} 22. Nc4
{[%clk 0:00:42.9]} 22... Nxc4 {[%clk 0:00:44.8]} 23. bxc4 {[%clk 0:00:43.8]}
23... fxe4 {[%clk 0:00:43.4]} 24. dxe4 {[%clk 0:00:44.7]} 24... Rce8 {[%clk
0:00:41.6]} 25. f3 {[%clk 0:00:40.4]} 25... g5 {[%clk 0:00:41.8]} 26. h3 {[%clk
0:00:33.2]} 26... h5 {[%clk 0:00:41.1]} 27. Re1 {[%clk 0:00:33.4]} 27... Re6
{[%clk 0:00:41]} 28. a4 {[%clk 0:00:29.2]} 28... Rfe8 {[%clk 0:00:40.3]} 29. a5
{[%clk 0:00:29.3]} 29... g4 {[%clk 0:00:37.6]} 30. hxg4 {[%clk 0:00:29.1]} 30...
hxg4 {[%clk 0:00:37.2]} 31. axb6 {[%clk 0:00:29.6]} 31... axb6 {[%clk
0:00:37.4]} 32. Ra7 {[%clk 0:00:28.5]} 32... gxf3+ {[%clk 0:00:34.7]} 33. Kxf3
{[%clk 0:00:28.6]} 33... R8e7 {[%clk 0:00:34.6]} 34. Rxe7 {[%clk 0:00:26.2]}
34... Rxe7 {[%clk 0:00:34.8]} 35. e5 {[%clk 0:00:27.1]} 35... Kf7 {[%clk
0:00:34.5]} 36. Ke4 {[%clk 0:00:27.4]} 36... Ke6 {[%clk 0:00:33.5]} 37. Rh1
{[%clk 0:00:27.3]} 37... Rg7 {[%clk 0:00:31.7]} 38. Rh6+ {[%clk 0:00:26.5]}
38... Kd7 {[%clk 0:00:27.2]} 39. Rxb6 {[%clk 0:00:23.7]} 39... Rxg3 {[%clk
0:00:26.9]} 40. Kd5 {[%clk 0:00:22]} 40... d3 {[%clk 0:00:26.2]} 41. Rb7+ {[%clk
0:00:22]} 41... Kc8 {[%clk 0:00:24.7]} 42. Rb3 {[%clk 0:00:21.3]} 42... d2
{[%clk 0:00:22.8]} 43. Rxg3 {[%clk 0:00:18.3]} 43... d1=Q+ {[%clk 0:00:22.4]}
44. Ke6 {[%clk 0:00:16.5]} 44... Qd7+ {[%clk 0:00:22.1]} 45. Kf6 {[%clk
0:00:16.1]} 45... Qd8+ {[%clk 0:00:22.1]} 46. Kf7 {[%clk 0:00:14.6]} 46... Qc7+
{[%clk 0:00:19.5]} 47. Kf6 {[%clk 0:00:14.7]} 47... Qd8+ {[%clk 0:00:19.4]} 48.
Kf7 {[%clk 0:00:14.9]} 48... Qd4 {[%clk 0:00:18.6]} 49. Rg8+ {[%clk 0:00:13.5]}
49... Kc7 {[%clk 0:00:17]} 50. e6 {[%clk 0:00:14.4]} 50... Qxc4 {[%clk
0:00:16.9]} 51. Rg7 {[%clk 0:00:13.6]} 51... Qf4+ {[%clk 0:00:15.8]} 52. Ke8+
{[%clk 0:00:12.8]} 52... Kd6 {[%clk 0:00:16]} 53. e7 {[%clk 0:00:13.1]} 53...
Qf6 {[%clk 0:00:14.3]} 54. Rf7 {[%clk 0:00:12.2]} 54... Qe6 {[%clk 0:00:12.8]}
55. Kf8 {[%clk 0:00:11]} 55... Qh6+ {[%clk 0:00:10.1]} 56. Rg7 {[%clk
0:00:07.7]} 56... Qxg7+ {[%clk 0:00:09.7]} 57. Kxg7 {[%clk 0:00:07.7]} 57...
Kxe7 {[%clk 0:00:10.6]} 0-1

[Event "*** Titled Tuesday Blitz"]
[Site "Chess.com"]
[Date "2020.12.29"]
[Round "5"]
[White "AsaHoffmann"]
[Black "KyronGriffith"]
[Result "1-0"]
[WhiteElo "2363"]
[BlackElo "2533"]
[TimeControl "180+1"]
[EndTime "10:55:43 PST"]
[Termination "AsaHoffmann won on time"]

1. d4 {[%clk 0:02:54.1]} 1... Nf6 {[%clk 0:02:53.5]} 2. Bg5 {[%clk 0:02:41.7]}
2... e6 {[%clk 0:02:49.9]} 3. Nd2 {[%clk 0:02:41.1]} 3... c5 {[%clk 0:02:48]} 4.
e3 {[%clk 0:02:40.6]} 4... h6 {[%clk 0:02:42.4]} 5. Bh4 {[%clk 0:02:30.7]} 5...
b6 {[%clk 0:02:37.5]} 6. Bd3 {[%clk 0:02:28.5]} 6... Bb7 {[%clk 0:02:37.3]} 7.
Ngf3 {[%clk 0:02:28.3]} 7... d6 {[%clk 0:02:35.9]} 8. Qe2 {[%clk 0:02:26.8]}
8... Nbd7 {[%clk 0:02:35.5]} 9. c3 {[%clk 0:02:26.3]} 9... Be7 {[%clk
0:02:35.2]} 10. h3 {[%clk 0:02:23.4]} 10... O-O {[%clk 0:02:32]} 11. Bg3 {[%clk
0:02:22.2]} 11... Re8 {[%clk 0:02:29.5]} 12. O-O {[%clk 0:02:21.6]} 12... Bf8
{[%clk 0:02:28.3]} 13. Rfe1 {[%clk 0:02:20.7]} 13... e5 {[%clk 0:02:26.9]} 14.
dxe5 {[%clk 0:02:15.1]} 14... Nxe5 {[%clk 0:02:25]} 15. Nxe5 {[%clk 0:02:13.7]}
15... dxe5 {[%clk 0:02:25.9]} 16. e4 {[%clk 0:02:12.7]} 16... g6 {[%clk
0:02:17.8]} 17. Bb5 {[%clk 0:02:07.1]} 17... Re7 {[%clk 0:02:08.6]} 18. Rad1
{[%clk 0:02:06.1]} 18... Qc7 {[%clk 0:02:05.7]} 19. f3 {[%clk 0:02:00.6]} 19...
Nh5 {[%clk 0:02:05.3]} 20. Bh2 {[%clk 0:02:00.3]} 20... a6 {[%clk 0:02:01.9]}
21. Bc4 {[%clk 0:01:59.7]} 21... b5 {[%clk 0:01:58.6]} 22. Bd5 {[%clk
0:01:59.4]} 22... c4 {[%clk 0:01:41.8]} 23. Nf1 {[%clk 0:01:45.8]} 23... Bxd5
{[%clk 0:01:23.4]} 24. exd5 {[%clk 0:01:34.8]} 24... Rae8 {[%clk 0:01:19.1]} 25.
d6 {[%clk 0:01:27]} 25... Qa7+ {[%clk 0:01:17]} 26. Qe3 {[%clk 0:01:26.8]} 26...
Qxe3+ {[%clk 0:01:14.5]} 27. Nxe3 {[%clk 0:01:25.6]} 27... Rd7 {[%clk
0:01:13.8]} 28. g4 {[%clk 0:01:20.1]} 28... Nf4 {[%clk 0:01:08.2]} 29. Bxf4
{[%clk 0:01:19.5]} 29... exf4 {[%clk 0:01:08.5]} 30. Nd5 {[%clk 0:01:19.5]}
30... Rxe1+ {[%clk 0:01:07.7]} 31. Rxe1 {[%clk 0:01:19]} 31... Rxd6 {[%clk
0:01:01]} 32. Nxf4 {[%clk 0:01:17.2]} 32... Rd2 {[%clk 0:00:59.5]} 33. Re2
{[%clk 0:01:16.4]} 33... Bc5+ {[%clk 0:00:57.7]} 34. Kg2 {[%clk 0:01:16.3]}
34... Rxe2+ {[%clk 0:00:51.8]} 35. Nxe2 {[%clk 0:01:15.9]} 35... Kg7 {[%clk
0:00:51.5]} 36. f4 {[%clk 0:01:15.7]} 36... Kf6 {[%clk 0:00:52.1]} 37. Kf3
{[%clk 0:01:15.8]} 37... Ke6 {[%clk 0:00:52.1]} 38. Ke4 {[%clk 0:01:10.7]} 38...
f5+ {[%clk 0:00:52]} 39. gxf5+ {[%clk 0:01:09.7]} 39... gxf5+ {[%clk 0:00:52.9]}
40. Kf3 {[%clk 0:01:09.2]} 40... a5 {[%clk 0:00:50.7]} 41. a3 {[%clk 0:00:56.2]}
41... b4 {[%clk 0:00:43.2]} 42. axb4 {[%clk 0:00:55.7]} 42... axb4 {[%clk
0:00:44.1]} 43. Nc1 {[%clk 0:00:49.7]} 43... Kd5 {[%clk 0:00:39.7]} 44. Ne2
{[%clk 0:00:49.3]} 44... bxc3 {[%clk 0:00:35.9]} 45. bxc3 {[%clk 0:00:46.9]}
45... Bb6 {[%clk 0:00:36.5]} 46. Ng3 {[%clk 0:00:42.1]} 46... Ke6 {[%clk
0:00:33.7]} 47. Ne2 {[%clk 0:00:40]} 47... Kf6 {[%clk 0:00:31.7]} 48. Ng3 {[%clk
0:00:39.5]} 48... Ba5 {[%clk 0:00:28.2]} 49. Ne2 {[%clk 0:00:39.2]} 49... Kg6
{[%clk 0:00:27.1]} 50. Ke3 {[%clk 0:00:38.2]} 50... Bb6+ {[%clk 0:00:26.7]} 51.
Kd2 {[%clk 0:00:38.1]} 51... Kh5 {[%clk 0:00:26]} 52. Nd4 {[%clk 0:00:37.4]}
52... Kg6 {[%clk 0:00:15.3]} 53. Nc2 {[%clk 0:00:35.1]} 53... Bc7 {[%clk
0:00:12.4]} 54. Ke3 {[%clk 0:00:33.6]} 54... Ba5 {[%clk 0:00:12.9]} 55. Kd4
{[%clk 0:00:32.4]} 55... Bc7 {[%clk 0:00:13.4]} 56. Kxc4 {[%clk 0:00:31.3]}
56... Bxf4 {[%clk 0:00:13.7]} 57. Kd5 {[%clk 0:00:31.2]} 57... Kg5 {[%clk
0:00:13.9]} 58. c4 {[%clk 0:00:31.1]} 58... Kh4 {[%clk 0:00:14]} 59. Nd4 {[%clk
0:00:31]} 59... Kxh3 {[%clk 0:00:13.3]} 60. Nxf5 {[%clk 0:00:30.8]} 60... h5
{[%clk 0:00:13.9]} 61. c5 {[%clk 0:00:30]} 61... Kg4 {[%clk 0:00:13.5]} 62. Nd6
{[%clk 0:00:29.9]} 62... h4 {[%clk 0:00:11.1]} 63. c6 {[%clk 0:00:29.8]} 63...
h3 {[%clk 0:00:11.6]} 64. c7 {[%clk 0:00:29.9]} 64... h2 {[%clk 0:00:11.4]} 65.
c8=Q+ {[%clk 0:00:29.2]} 65... Kg3 {[%clk 0:00:11.4]} 66. Ne4+ {[%clk
0:00:28.2]} 66... Kg2 {[%clk 0:00:09.6]} 67. Qg8+ {[%clk 0:00:27.3]} 67... Kf3
{[%clk 0:00:07.7]} 68. Qh7 {[%clk 0:00:25.5]} 68... Bg3 {[%clk 0:00:04.2]} 69.
Qh3 {[%clk 0:00:23.7]} 69... Ke2 {[%clk 0:00:01.8]} 70. Nxg3+ {[%clk 0:00:22.7]}
1-0